[Event "WALTON BAN-chT 2019"]
[Site "Bangladesh"]
[Date "2019.12.15"]
[Round "1.2"]
[White "Mchedlishvili, Mikheil"]
[Black "Sourath Biswas"]
[Result "1-0"]
[ECO "E66"]
[WhiteElo "2567"]
[BlackElo "1944"]
[Annotator "ChessBase"]
[PlyCount "75"]
[EventDate "2019.12.07"]
[EventType "team-tourn"]
[EventCountry "BAN"]
[SourceTitle "playchess.com"]
[Source "ChessBase"]
[SourceQuality "1"]
[TimeControl "5400+30"]

1. d4 {[%emt 0:00:00]} Nf6 {[%emt 0:00:00]} 2. c4 {[%emt 0:00:03]} g6 {[%emt 0:00:01]} 3. g3 {[%emt 0:01:06]} Bg7 {[%emt 0:00:10]} 4. Bg2 {[%emt 0:00:13]} O-O {[%emt 0:00:15]} 5. Nc3 {[%emt 0:00:28]} d6 {[%emt 0:00:07]} 6. Nf3 {[%emt 0:00:48]} Nc6 {[%emt 0:00:20]} 7. d5 {[%emt 0:02:40]} Na5 {[%emt 0:00:09]} 8. Nd2 {[%emt 0:00:40]} c5 {[%emt 0:00:07]} 9. O-O {[%emt 0:00:57]} a6 {[%emt 0:00:16]} 10. Rb1 {[%emt 0:01:26]} Ne8 {[%emt 0:09:14]} 11. Qc2 {[%emt 0:01:25]} Bd7 {[%emt 0:00:11]} 12. b3 {[%emt 0:03:33]} b5 {[%emt 0:05:00]} 13. Bb2 {[%emt 0:01:02]} Rb8 {[%emt 0:03:23]} 14. Nd1 {[%emt 0:08:45]} bxc4 {[%emt 0:07:27]} 15. bxc4 {[%emt 0:01:28]} Rb4 {[%emt 0:07:04]} 16. Bxg7 {[%emt 0:13:35]} Nxg7 {[%emt 0:00:08]} 17. Nb2 {[%emt 0:01:14]} Qc7 {[%emt 0:07:37]} 18. Rbe1 {[%emt 0:03:15]} Nf5 {[%emt 0:21:21]} 19. Nd3 {[%emt 0:04:25]} Nd4 {[%emt 0:03:16]} 20. Qc3 {[%emt 0:01:40]} Rbb8 {[%emt 0:01:11]} 21. e3 {[%emt 0:03:31]} Nf5 {[%emt 0:00:12]} 22. Rb1 {[%emt 0:04:17]} Rfc8 {[%emt 0:01:44]} 23. Nf3 {[%emt 0:10:20]} h5 {[%emt 0:00:54]} 24. Rfc1 {[%emt 0:01:24]} f6 {[%emt 0:08:19]} 25. Nf4 {[%emt 0:06:02]} Kh7 {[%emt 0:00:58]} 26. Bf1 {[%emt 0:01:19]} Nb7 {[%emt 0:02:06]} 27. Bd3 {[%emt 0:00:40]} Nd8 {[%emt 0:00:08]} 28. Nxg6 {[%emt 0:01:11]} Kxg6 {[%emt 0:00:41]} 29. Nh4+ {[%emt 0:00:43]} Kf7 {[%emt 0:00:22]} 30. Bxf5 {[%emt 0:01:51]} Bxf5 {[%emt 0:00:30]} 31. Nxf5 {[%emt 0:00:08]} Rxb1 {[%emt 0:00:06]} 32. Rxb1 {[%emt 0:00:34]} Rb8 {[%emt 0:00:05]} 33. Rd1 {[%emt 0:04:29]} Qb7 {[%emt 0:00:16]} 34. e4 {[%emt 0:02:18]} Ke8 {[%emt 0:04:30]} 35. Qf3 {[%emt 0:00:25]} Kd7 {[%emt 0:00:13]} 36. Qxh5 {[%emt 0:00:17]} Qb2 {[%emt 0:00:15]} 37. Qg4 {[%emt 0:03:56]} Qxa2 {[%emt 0:01:04]} 38. Qg7 {[%emt 0:01:23]} 1-0

[Event "WALTON BAN-chT 2019"]
[Site "Bangladesh"]
[Date "2019.12.15"]
[Round "1.3"]
[White "Ahmed, Feroz"]
[Black "Mohammad Fahad, Rahman"]
[Result "0-1"]
[ECO "E20"]
[WhiteElo "1936"]
[BlackElo "2294"]
[Annotator "NA"]
[PlyCount "70"]
[EventDate "2019.12.07"]
[EventType "team-tourn"]
[EventCountry "BAN"]
[SourceTitle "playchess.com"]
[Source "ChessBase"]
[SourceQuality "1"]
[TimeControl "5400+30"]

1. c4 {[%emt 0:00:00]} e6 {[%emt 0:00:00]} 2. d4 {[%emt 0:00:14]} Nf6 {[%emt 0:00:00]} 3. Nc3 {[%emt 0:00:45]} Bb4 {[%emt 0:00:15]} 4. g3 {[%emt 0:00:52]} O-O {[%emt 0:00:55]} 5. Bg2 {[%emt 0:00:54]} d5 {[%emt 0:01:30]} 6. Nf3 {[%emt 0:02:46]} dxc4 {[%emt 0:02:17]} 7. O-O {[%emt 0:12:36]} Nd5 {[%emt 0:10:49]} 8. Qc2 {[%emt 0:13:22]} Nc6 {[%emt 0:02:21]} 9. Bd2 {[%emt 0:08:39]} a6 {[%emt 0:05:32]} 10. e4 {[%emt 0:11:02]} Nxc3 {[%emt 0:10:00]} 11. Bxc3 {[%emt 0:09:27]} Be7 {[%emt 0:11:04]} 12. d5 {[%emt 0:08:59]} exd5 {[%emt 0:02:44]} 13. exd5 {[%emt 0:04:44]} Nb4 {[%emt 0:07:15]} 14. Bxb4 {[%emt 0:02:18]} Bxb4 {[%emt 0:00:03]} 15. Qxc4 {[%emt 0:00:59]} Bd6 {[%emt 0:00:20]} 16. Rfe1 {[%emt 0:03:02]} Qf6 {[%emt 0:03:53]} 17. Re2 {[%emt 0:04:18]} Bd7 {[%emt 0:00:43]} 18. Qb3 {[%emt 0:00:38]} a5 {[%emt 0:02:15]} 19. Qc4 {[%emt 0:09:09]} a4 {[%emt 0:03:00]} 20. Rae1 {[%emt 0:02:04]} Rfe8 {[%emt 0:02:04]} 21. Rxe8+ {[%emt 0:00:29]} Rxe8 {[%emt 0:00:01]} 22. Rxe8+ {[%emt 0:00:03]} Bxe8 {[%emt 0:00:08]} 23. Qe2 {[%emt 0:02:55]} Bd7 {[%emt 0:00:31]} 24. h3 {[%emt 0:00:57]} Kf8 {[%emt 0:00:56]} 25. Nh2 {[%emt 0:00:02]} Qd4 {[%emt 0:01:37]} 26. Nf1 {[%emt 0:00:46]} Be5 {[%emt 0:01:28]} 27. b3 {[%emt 0:00:36]} a3 {[%emt 0:00:06]} 28. Ne3 {[%emt 0:00:26]} Qb2 {[%emt 0:02:47]} 29. Bf1 {[%emt 0:00:53]} b5 {[%emt 0:01:29]} 30. Kg2 {[%emt 0:00:30]} Bd4 {[%emt 0:00:20]} 31. Nd1 {[%emt 0:00:28]} Qxe2 32. Bxe2 {[%emt 0:00:01]} Bf5 {[%emt 0:00:24]} 33. Bxb5 {[%emt 0:00:59]} Bb1 {[%emt 0:00:30]} 34. Ba4 {[%emt 0:00:35]} Bxa2 {[%emt 0:00:13]} 35. b4 {[%emt 0:00:24]} Bxd5+ {[%emt 0:00:08]} 0-1

[Event "WALTON BAN-chT 2019"]
[Site "Bangladesh"]
[Date "2019.12.15"]
[Round "1.4"]
[White "Mohammed Abdul, Malek"]
[Black "Swarnavo Choudhury"]
[Result "1/2-1/2"]
[ECO "D94"]
[WhiteElo "2162"]
[BlackElo "1840"]
[Annotator "NA"]
[PlyCount "53"]
[EventDate "2019.12.07"]
[EventType "team-tourn"]
[EventCountry "BAN"]
[SourceTitle "playchess.com"]
[Source "ChessBase"]
[SourceQuality "1"]
[TimeControl "5400+30"]

1. d4 {[%emt 0:00:00]} Nf6 {[%emt 0:00:13]} 2. Nf3 {[%emt 0:00:00]} g6 {[%emt 0:00:46]} 3. c4 {[%emt 0:00:00]} Bg7 {[%emt 0:00:30]} 4. Nc3 {[%emt 0:00:10]} d5 {[%emt 0:01:04]} 5. e3 {[%emt 0:01:39]} O-O {[%emt 0:03:01]} 6. Bd3 {[%emt 0:01:55]} a6 {[%emt 0:09:45]} 7. a4 {[%emt 0:01:34]} c5 {[%emt 0:05:40]} 8. h3 {[%emt 0:05:28]} Nc6 {[%emt 0:17:11]} 9. cxd5 {[%emt 1:23:44]} cxd4 {[%emt 0:07:03]} 10. dxc6 {[%emt 0:00:00]} dxc3 {[%emt 0:00:07]} 11. bxc3 {[%emt 0:00:00]} bxc6 {[%emt 0:07:53]} 12. O-O {[%emt 0:00:00]} Nd5 {[%emt 0:03:27]} 13. Qc2 {[%emt 0:00:00]} Nb4 {[%emt 0:16:09]} 14. cxb4 {[%emt 0:00:00]} Bxa1 {[%emt 0:00:42]} 15. Be4 {[%emt 0:00:00]} Bg7 {[%emt 0:04:32]} 16. Rd1 {[%emt 0:00:00]} Qb6 {[%emt 0:09:14]} 17. Ba3 {[%emt 0:00:00]} Be6 {[%emt 0:02:39]} 18. Qxc6 {[%emt 0:00:00]} Qxc6 {[%emt 0:02:09]} 19. Bxc6 {[%emt 0:00:00]} Rab8 {[%emt 0:01:38]} 20. Ng5 {[%emt 0:00:00]} Rfc8 {[%emt 0:01:06]} 21. Nxe6 {[%emt 0:00:00]} Rxc6 {[%emt 0:00:18]} 22. Nc5 {[%emt 0:00:00]} Bc3 {[%emt 0:01:08]} 23. Nd7 {[%emt 0:00:00]} Rb7 {[%emt 0:01:42]} 24. Nc5 {[%emt 0:00:00]} Rb8 {[%emt 0:00:09]} 25. Nd7 {[%emt 0:00:00]} Rb7 {[%emt 0:00:04]} 26. Nc5 {[%emt 0:00:00]} Rb8 {[%emt 0:00:57]} 27. Nd7 {[%emt 0:00:00]} 1/2-1/2

[Event "WALTON BAN-chT 2019"]
[Site "Bangladesh"]
[Date "2019.12.15"]
[Round "1.5"]
[White "Rahman, Taibur"]
[Black "Zia, Tahsin Tajwar"]
[Result "1-0"]
[ECO "D46"]
[WhiteElo "2241"]
[BlackElo "2148"]
[Annotator "NA"]
[PlyCount "67"]
[EventDate "2019.12.07"]
[EventType "team-tourn"]
[EventCountry "BAN"]
[SourceTitle "playchess.com"]
[Source "ChessBase"]
[SourceQuality "1"]
[TimeControl "5400+30"]

1. d4 {[%emt 0:00:00]} d5 {[%emt 0:00:00]} 2. c4 {[%emt 0:00:00]} e6 {[%emt 0:00:00]} 3. Nc3 {[%emt 0:00:00]} c6 {[%emt 0:00:00]} 4. e3 {[%emt 0:02:57]} Nf6 {[%emt 0:00:11]} 5. Nf3 {[%emt 0:00:14]} Nbd7 {[%emt 0:00:11]} 6. Qc2 {[%emt 0:00:18]} Bd6 {[%emt 0:01:18]} 7. Be2 {[%emt 0:04:20]} dxc4 {[%emt 0:04:05]} 8. Bxc4 {[%emt 0:00:57]} b5 {[%emt 0:01:34]} 9. Be2 {[%emt 0:03:42]} Bb7 {[%emt 0:00:19]} 10. O-O {[%emt 0:00:08]} a6 {[%emt 0:02:21]} 11. e4 {[%emt 0:05:51]} e5 {[%emt 0:02:01]} 12. Bg5 {[%emt 0:10:22]} h6 {[%emt 0:24:59]} 13. Bh4 {[%emt 0:03:03]} c5 {[%emt 0:05:47]} 14. dxe5 {[%emt 0:20:09]} Nxe5 {[%emt 0:01:54]} 15. Rfd1 {[%emt 0:00:25]} Qe7 {[%emt 0:09:01]} 16. a4 {[%emt 0:15:21]} b4 {[%emt 0:06:38]} 17. Nd5 {[%emt 0:01:24]} Bxd5 {[%emt 0:00:20]} 18. Rxd5 {[%emt 0:13:40]} g5 {[%emt 0:09:58]} 19. Rxd6 {[%emt 0:03:46]} Qxd6 {[%emt 0:02:08]} 20. Bg3 {[%emt 0:04:34]} Nfd7 {[%emt 0:01:13]} 21. Rd1 {[%emt 0:00:14]} Qe7 {[%emt 0:03:26]} 22. Nxe5 {[%emt 0:02:21]} Nxe5 {[%emt 0:00:18]} 23. Rd5 {[%emt 0:00:09]} f6 {[%emt 0:14:12]} 24. Bh5+ {[%emt 0:00:22]} Kf8 {[%emt 0:00:22]} 25. Rxc5 {[%emt 0:00:45]} Rd8 {[%emt 0:01:41]} 26. h4 {[%emt 0:02:31]} Rd7 {[%emt 0:07:50]} 27. Bxe5 {[%emt 0:01:56]} fxe5 {[%emt 0:00:01]} 28. Bg4 {[%emt 0:00:13]} Rb7 {[%emt 0:02:12]} 29. Rc6 {[%emt 0:01:14]} Rh7 {[%emt 0:00:30]} 30. Qc4 {[%emt 0:01:09]} Kg7 {[%emt 0:00:00]} 31. Bf5 {[%emt 0:00:50]} Rh8 {[%emt 0:00:23]} 32. Rg6+ {[%emt 0:00:32]} Kf8 {[%emt 0:00:26]} 33. Qc8+ {[%emt 0:00:08]} Kf7 {[%emt 0:00:16]} 34. Qxh8 {[%emt 0:00:09]} 1-0

[Event "WALTON BAN-chT 2019"]
[Site "Bangladesh"]
[Date "2019.12.15"]
[Round "1.6"]
[White "Lugovskoy, Maxim"]
[Black "Chatterjee, Debaraj"]
[Result "1/2-1/2"]
[ECO "B01"]
[WhiteElo "2466"]
[BlackElo "2216"]
[Annotator "ChessBase"]
[PlyCount "103"]
[EventDate "2019.12.07"]
[EventType "team-tourn"]
[EventCountry "BAN"]
[SourceTitle "playchess.com"]
[Source "ChessBase"]
[SourceQuality "1"]
[TimeControl "5400+30"]

1. e4 {[%emt 0:00:00]} d5 {[%emt 0:01:31]} 2. b3 {[%emt 0:02:39]} dxe4 {[%emt 0:00:44]} 3. Bb2 {[%emt 0:00:05]} Nf6 {[%emt 0:08:03]} 4. Ne2 {[%emt 0:05:09]} Bf5 {[%emt 0:02:43]} 5. Ng3 {[%emt 0:20:32]} Bg6 {[%emt 0:00:57]} 6. Na3 {[%emt 0:10:47]} e6 {[%emt 0:02:38]} 7. Nc4 {[%emt 0:01:24]} Nc6 {[%emt 0:06:39]} 8. Ne5 {[%emt 0:07:00]} Nxe5 {[%emt 0:02:05]} 9. Bxe5 {[%emt 0:00:04]} Be7 {[%emt 0:07:35]} 10. Qe2 {[%emt 0:05:41]} O-O {[%emt 0:06:16]} 11. Rd1 {[%emt 0:02:03]} Bc5 {[%emt 0:13:33]} 12. h3 {[%emt 0:05:02]} Bd4 {[%emt 0:04:47]} 13. Bxd4 {[%emt 0:03:15]} Qxd4 {[%emt 0:00:09]} 14. Qc4 {[%emt 0:00:23]} Qe5 {[%emt 0:05:57]} 15. Be2 {[%emt 0:01:21]} Rfd8 {[%emt 0:00:54]} 16. Nf1 {[%emt 0:02:43]} Rd4 {[%emt 0:03:59]} 17. Qc3 {[%emt 0:00:24]} Rad8 {[%emt 0:03:35]} 18. Qg3 {[%emt 0:02:00]} Qa5 {[%emt 0:04:40]} 19. c3 {[%emt 0:00:44]} R4d7 {[%emt 0:22:45]} 20. Ne3 {[%emt 0:06:18]} c6 {[%emt 0:00:00]} 21. h4 {[%emt 0:04:28]} h6 {[%emt 0:00:00]} 22. Nc4 {[%emt 0:00:32]} Qc7 {[%emt 0:00:00]} 23. Ne5 {[%emt 0:00:06]} Rd5 {[%emt 0:00:00]} 24. Nxg6 {[%emt 0:00:55]} Qxg3 {[%emt 0:00:00]} 25. fxg3 {[%emt 0:00:31]} fxg6 {[%emt 0:00:00]} 26. a4 {[%emt 0:02:49]} Kf7 {[%emt 0:00:00]} 27. b4 {[%emt 0:16:35]} a5 {[%emt 0:00:00]} 28. Bc4 {[%emt 0:00:00]} Rf5 {[%emt 0:00:00]} 29. b5 {[%emt 0:00:00]} cxb5 {[%emt 0:00:00]} 30. Bxb5 {[%emt 0:01:30]} Ke7 {[%emt 0:00:59]} 31. Rb1 {[%emt 0:00:00]} b6 {[%emt 0:00:37]} 32. Rf1 {[%emt 0:00:00]} Rd6 {[%emt 0:00:19]} 33. Be2 {[%emt 0:00:00]} Nd5 {[%emt 0:01:31]} 34. Rb3 {[%emt 0:00:00]} Rc6 {[%emt 0:02:02]} 35. Bb5 {[%emt 0:00:00]} Rd6 {[%emt 0:00:15]} 36. Ke2 {[%emt 0:03:00]} g5 {[%emt 0:00:38]} 37. Bc4 {[%emt 0:00:30]} gxh4 {[%emt 0:00:49]} 38. Rxf5 {[%emt 0:00:00]} exf5 {[%emt 0:00:01]} 39. Rb5 {[%emt 0:00:00]} Ke6 {[%emt 0:01:41]} 40. gxh4 {[%emt 0:00:00]} g5 {[%emt 0:00:42]} 41. Bb3 {[%emt 0:00:00]} gxh4 {[%emt 0:01:26]} 42. Kf1 {[%emt 0:00:36]} f4 {[%emt 0:00:00]} 43. c4 {[%emt 0:00:03]} Nc7 {[%emt 0:01:00]} 44. c5+ {[%emt 0:01:04]} Kd7 {[%emt 0:00:00]} 45. cxd6 {[%emt 0:01:23]} Nxb5 {[%emt 0:00:00]} 46. axb5 {[%emt 0:00:01]} Kxd6 {[%emt 0:00:00]} 47. Ke2 {[%emt 0:01:18]} Kc5 {[%emt 0:01:20]} 48. Bc2 {[%emt 0:00:01]} Kd4 {[%emt 0:00:15]} 49. Bb3 {[%emt 0:00:31]} Kc5 {[%emt 0:00:22]} 50. Bc2 {[%emt 0:00:03]} Kd4 {[%emt 0:00:01]} 51. Bb3 {[%emt 0:00:28]} Kc5 {[%emt 0:00:05]} 52. Bc2 {[%emt 0:00:46]} 1/2-1/2

[Event "WALTON BAN-chT 2019"]
[Site "Bangladesh"]
[Date "2019.12.15"]
[Round "1.7"]
[White "Masum, Hossain"]
[Black "Khusenkhojaev, Muhammad"]
[Result "0-1"]
[ECO "D87"]
[WhiteElo "2088"]
[BlackElo "2427"]
[Annotator "NA"]
[PlyCount "81"]
[EventDate "2019.12.07"]
[EventType "team-tourn"]
[EventCountry "BAN"]
[SourceTitle "playchess.com"]
[Source "ChessBase"]
[SourceQuality "1"]
[TimeControl "5400+30"]

1. d4 {[%emt 1:30:30]} Nf6 {[%emt 1:30:30]} 2. c4 {[%emt 0:00:30]} g6 {[%emt 0:00:30]} 3. Nc3 {[%emt 0:00:30]} d5 {[%emt 0:00:30]} 4. cxd5 {[%emt 0:00:30]} Nxd5 {[%emt 0:00:30]} 5. e4 {[%emt 0:00:30]} Nxc3 {[%emt 0:00:30]} 6. bxc3 {[%emt 0:00:30]} Bg7 {[%emt 0:00:30]} 7. Bc4 {[%emt 0:00:30]} c5 {[%emt 0:00:30]} 8. Ne2 {[%emt 0:00:30]} Nc6 {[%emt 0:00:30]} 9. Be3 {[%emt 0:00:30]} O-O {[%emt 0:00:30]} 10. O-O {[%emt 0:00:30]} b6 {[%emt 0:00:30]} 11. dxc5 {[%emt 0:00:30]} Qc7 {[%emt 0:00:30]} 12. cxb6 {[%emt 0:00:30]} axb6 {[%emt 0:00:30]} 13. Rb1 {[%emt 0:00:30]} Ne5 {[%emt 0:00:30]} 14. Bd5 {[%emt 0:00:30]} Rb8 {[%emt 0:00:30]} 15. f4 {[%emt 0:00:30]} Ng4 {[%emt 0:00:30]} 16. Bd4 {[%emt 0:00:30]} e6 {[%emt 0:00:30]} 17. Bb3 {[%emt 0:00:30]} Rd8 {[%emt 0:00:30]} 18. e5 {[%emt 0:00:30]} Ne3 {[%emt 0:00:30]} 19. Qd3 {[%emt 0:00:30]} Nxf1 {[%emt 0:00:30]} 20. Rxf1 {[%emt 0:00:30]} Bb7 {[%emt 0:00:30]} 21. Qe3 {[%emt 0:00:30]} Qc6 {[%emt 0:00:30]} 22. Rf2 {[%emt 0:00:30]} b5 {[%emt 0:00:30]} 23. Ng3 {[%emt 0:00:30]} Rbc8 {[%emt 0:00:30]} 24. h3 {[%emt 0:00:30]} Bf8 {[%emt 0:00:30]} 25. f5 {[%emt 0:00:30]} b4 {[%emt 0:00:30]} 26. fxe6 {[%emt 0:00:30]} fxe6 {[%emt 0:00:30]} 27. cxb4 {[%emt 0:00:30]} Qc1+ {[%emt 0:00:30]} 28. Kh2 {[%emt 0:00:30]} Bd5 {[%emt 0:00:30]} 29. Bxd5 {[%emt 0:00:30]} Rxd5 {[%emt 0:00:30]} 30. Ne4 {[%emt 0:00:30]} Qxe3 {[%emt 0:00:30]} 31. Nf6+ {[%emt 0:00:30]} Kg7 {[%emt 0:00:30]} 32. Bxe3 {[%emt 0:00:30]} Rd3 {[%emt 0:00:30]} 33. Ng4 {[%emt 0:00:30]} Bxb4 {[%emt 0:00:30]} 34. Bh6+ {[%emt 0:00:30]} Kg8 {[%emt 0:00:30]} 35. Nf6+ {[%emt 0:00:30]} Kh8 {[%emt 0:00:30]} 36. Ne4 {[%emt 0:00:30]} Rd4 {[%emt 0:00:30]} 37. Ng5 {[%emt 0:00:30]} Rd7 {[%emt 0:00:30]} 38. Nxe6 {[%emt 0:00:30]} Bc3 {[%emt 0:00:30]} 39. Re2 {[%emt 0:00:30]} Re8 {[%emt 0:00:30]} 40. Ng5 {[%emt 0:00:30]} Bxe5+ {[%emt 0:00:30]} 41. Rxe5 {[%emt 0:00:30]} 0-1

[Event "WALTON BAN-chT 2019"]
[Site "Bangladesh"]
[Date "2019.12.15"]
[Round "1.8"]
[White "Anata, Choudhury"]
[Black "Jabed Al Azad"]
[Result "1-0"]
[ECO "B08"]
[WhiteElo "2137"]
[BlackElo "2036"]
[Annotator "NA"]
[PlyCount "83"]
[EventDate "2019.12.07"]
[EventType "team-tourn"]
[EventCountry "BAN"]
[SourceTitle "playchess.com"]
[Source "ChessBase"]
[SourceQuality "1"]
[TimeControl "5400+30"]

1. e4 {[%emt 1:30:30]} d6 {[%emt 1:30:30]} 2. d4 {[%emt 0:00:30]} Nf6 {[%emt 0:00:30]} 3. Nc3 {[%emt 0:00:30]} g6 {[%emt 0:00:30]} 4. Nf3 {[%emt 0:00:30]} Bg7 {[%emt 0:00:30]} 5. Be2 {[%emt 0:00:30]} O-O {[%emt 0:00:30]} 6. O-O {[%emt 0:00:30]} a6 {[%emt 0:00:30]} 7. a4 {[%emt 0:00:30]} b6 {[%emt 0:00:30]} 8. Re1 {[%emt 0:00:30]} Bb7 {[%emt 0:00:30]} 9. Bf1 c5 {[%emt 0:00:30]} 10. d5 {[%emt 0:01:00]} Nbd7 {[%emt 0:00:30]} 11. h3 {[%emt 0:00:30]} Qc7 {[%emt 0:00:30]} 12. Bg5 {[%emt 0:00:30]} Rfe8 {[%emt 0:00:30]} 13. Bc4 {[%emt 0:00:30]} Ne5 {[%emt 0:00:30]} 14. Nxe5 {[%emt 0:00:30]} dxe5 {[%emt 0:00:30]} 15. Qf3 {[%emt 0:00:30]} Red8 {[%emt 0:00:30]} 16. Nd1 {[%emt 0:00:30]} Ne8 {[%emt 0:00:30]} 17. Ne3 {[%emt 0:00:30]} Nd6 {[%emt 0:00:30]} 18. b3 {[%emt 0:00:30]} b5 {[%emt 0:00:30]} 19. Bf1 {[%emt 0:00:30]} Rf8 {[%emt 0:00:30]} 20. c4 {[%emt 0:00:30]} bxa4 {[%emt 0:00:30]} 21. bxa4 {[%emt 0:00:30]} f5 {[%emt 0:00:30]} 22. exf5 {[%emt 0:00:30]} Bc8 {[%emt 0:00:30]} 23. Qg4 {[%emt 0:00:30]} Bxf5 {[%emt 0:00:30]} 24. Nxf5 {[%emt 0:00:30]} Nxf5 {[%emt 0:00:30]} 25. Rab1 {[%emt 0:00:30]} Rf7 {[%emt 0:00:30]} 26. Bd2 {[%emt 0:00:30]} Raf8 {[%emt 0:00:30]} 27. Bd3 {[%emt 0:00:30]} Nd4 {[%emt 0:00:30]} 28. Rf1 {[%emt 0:00:30]} Nf5 {[%emt 0:00:30]} 29. a5 {[%emt 0:00:30]} Nd6 {[%emt 0:00:30]} 30. Qe2 {[%emt 0:00:30]} Qd7 {[%emt 0:00:30]} 31. Bc2 {[%emt 0:00:30]} e6 {[%emt 0:00:30]} 32. dxe6 {[%emt 0:00:30]} Qxe6 {[%emt 0:00:30]} 33. Be3 {[%emt 0:00:30]} Rc8 {[%emt 0:00:30]} 34. Rfd1 {[%emt 0:00:30]} e4 {[%emt 0:00:30]} 35. Rd5 {[%emt 0:00:30]} Nb7 {[%emt 0:00:30]} 36. Qd2 {[%emt 0:00:30]} Re7 {[%emt 0:00:30]} 37. Ba4 {[%emt 0:00:30]} Rf8 {[%emt 0:00:30]} 38. Bd7 {[%emt 0:00:30]} Qf7 {[%emt 0:00:30]} 39. Rxb7 {[%emt 0:00:30]} Bd4 {[%emt 0:00:30]} 40. Rxd4 {[%emt 0:00:30]} cxd4 {[%emt 0:00:30]} 41. Qxd4 {[%emt 0:00:30]} Rd8 {[%emt 0:00:30]} 42. Be6 {[%emt 0:00:30]} 1-0

[Event "WALTON BAN-chT 2019"]
[Site "Bangladesh"]
[Date "2019.12.15"]
[Round "1.9"]
[White "Reefat, Bin-Sattar"]
[Black "Mehdi Hasan Parag"]
[Result "1-0"]
[ECO "B12"]
[WhiteElo "2417"]
[BlackElo "2169"]
[Annotator "NA"]
[PlyCount "97"]
[EventDate "2019.12.07"]
[EventType "team-tourn"]
[EventCountry "BAN"]
[SourceTitle "playchess.com"]
[Source "ChessBase"]
[SourceQuality "1"]
[TimeControl "5400+30"]

1. e4 {[%emt 0:10:48]} c6 {[%emt 0:00:00]} 2. d4 {[%emt 0:00:05]} d5 {[%emt 0:00:00]} 3. e5 {[%emt 0:00:05]} c5 {[%emt 0:00:00]} 4. dxc5 {[%emt 0:00:32]} e6 {[%emt 0:00:00]} 5. Nf3 {[%emt 0:01:32]} Bxc5 {[%emt 0:00:02]} 6. a3 {[%emt 0:00:09]} Ne7 {[%emt 0:00:12]} 7. Bd3 {[%emt 0:00:14]} Ng6 {[%emt 0:00:42]} 8. O-O {[%emt 0:01:26]} O-O {[%emt 0:01:45]} 9. b4 {[%emt 0:22:53]} Be7 {[%emt 0:00:20]} 10. Re1 {[%emt 0:05:45]} a5 {[%emt 0:00:22]} 11. b5 {[%emt 0:00:16]} a4 {[%emt 0:00:07]} 12. Nbd2 {[%emt 0:14:29]} Nd7 {[%emt 0:00:41]} 13. Bxg6 {[%emt 0:05:40]} fxg6 {[%emt 0:02:42]} 14. Nd4 {[%emt 0:00:57]} Nc5 {[%emt 0:09:10]} 15. Qe2 {[%emt 0:12:25]} Bd7 {[%emt 0:14:38]} 16. Bb2 {[%emt 0:00:47]} Rc8 {[%emt 0:04:34]} 17. Rad1 {[%emt 0:14:34]} Qe8 {[%emt 0:02:35]} 18. f3 {[%emt 0:04:58]} g5 {[%emt 0:01:57]} 19. c4 {[%emt 0:00:59]} dxc4 {[%emt 0:01:02]} 20. Qxc4 {[%emt 0:00:37]} Qg6 {[%emt 0:01:17]} 21. Re3 {[%emt 0:00:34]} g4 {[%emt 0:02:16]} 22. Qe2 {[%emt 0:00:08]} Rf4 {[%emt 0:07:09]} 23. g3 {[%emt 0:00:36]} gxf3 {[%emt 0:00:18]} 24. N4xf3 {[%emt 0:00:39]} Rcf8 {[%emt 0:03:36]} 25. Bd4 {[%emt 0:00:36]} Bc8 {[%emt 0:00:45]} 26. Nc4 {[%emt 0:00:39]} Qg4 {[%emt 0:12:51]} 27. Kg2 {[%emt 0:00:28]} b6 {[%emt 0:03:09]} 28. h3 {[%emt 0:00:14]} Qg6 {[%emt 0:02:01]} 29. Kh2 {[%emt 0:00:18]} Rxf3 {[%emt 0:05:10]} 30. Rxf3 {[%emt 0:00:12]} Rxf3 {[%emt 0:00:20]} 31. Qxf3 {[%emt 0:00:03]} Qc2+ {[%emt 0:10:34]} 32. Rd2 {[%emt 0:00:59]} Qxc4 {[%emt 0:00:02]} 33. Qc6 {[%emt 0:00:04]} Bd7 {[%emt 0:03:47]} 34. Qa8+ {[%emt 0:00:15]} Kf7 {[%emt 0:02:44]} 35. Bxc5 {[%emt 0:01:20]} Qxc5 {[%emt 0:00:04]} 36. Rxd7 {[%emt 0:00:23]} Qxa3 {[%emt 0:00:15]} 37. Rd2 {[%emt 0:01:00]} Qe3 {[%emt 0:00:38]} 38. Qg2 {[%emt 0:00:40]} Qxe5 {[%emt 0:00:27]} 39. Qf2+ {[%emt 0:00:12]} Kg6 {[%emt 0:01:26]} 40. Qxb6 {[%emt 0:00:21]} Bc5 {[%emt 0:01:13]} 41. Qd8 {[%emt 0:00:43]} a3 {[%emt 0:01:00]} 42. Qd3+ {[%emt 0:00:22]} Qf5 {[%emt 0:03:51]} 43. Qc4 {[%emt 0:00:23]} Kf6 {[%emt 0:02:00]} 44. Rc2 {[%emt 0:00:22]} Bb6 {[%emt 0:00:54]} 45. Qc3+ {[%emt 0:00:30]} Kg6 {[%emt 0:01:31]} 46. Qb3 {[%emt 0:00:53]} Kf6 {[%emt 0:00:32]} 47. Re2 {[%emt 0:00:16]} Kf7 {[%emt 0:02:08]} 48. h4 {[%emt 0:00:54]} Qf1 {[%emt 0:00:31]} 49. Qxe6+ {[%emt 0:01:15] Qf5} 1-0